bitfinex-derivatives/quotes_ETHF0:USTF0_20260113
["timestamp","ask_amount","ask_price","bid_price","bid_amount"]
[1768272482118,0.88658172,3103.5,3102.4,1.1102065]
[1768272482319,2.18159355,3103.7,3102.4,1.1102065]
[1768272482519,0.88658661,3103.6,3102.4,1.1102065]
[1768272482714,0.88658661,3103.5,3102.4,1.1102065]
[1768272482918,0.25481868,3104.1,3102.4,1.1102065]
[1768272482919,0.00320385,3103.6,3102.7,1.1102065]
[1768272483627,0.00320385,3103.6,3102.7,2.1940646]
[1768272489224,0.88708237,3103.5,3102.7,2.1940646]
[1768272489425,0.00320385,3103.6,3102.7,2.1940646]
[1768272489618,0.88707573,3103.5,3102.7,2.1940646]
[1768272489816,0.00320385,3103.6,3102.7,2.1940646]
[1768272490021,0.88707573,3103.5,3102.7,2.1940646]
[1768272490218,0.00320385,3103.6,3102.7,2.1940646]
[1768272490419,0.8872627,3103.5,3102.7,2.1940646]
[1768272490723,0.00320385,3103.6,3102.7,2.1940646]
[1768272491024,0.88725945,3103.5,3102.7,2.1940646]
[1768272491231,0.00320385,3103.6,3102.7,2.1940646]
[1768272491433,0.8874903,3103.5,3102.7,2.1940646]
[1768272491633,0.00320385,3103.6,3102.7,2.1940646]
[1768272491832,0.88748865,3103.5,3102.7,2.1940646]
[1768272492131,0.00320385,3103.6,3102.7,2.1940646]
[1768272492334,0.88772793,3103.5,3102.7,2.1940646]
[1768272492535,0.00320385,3103.6,3102.7,2.1940646]
[1768272492728,0.8877269,3103.5,3102.7,2.1940646]
[1768272492929,0.00320385,3103.6,3102.7,2.1940646]
[1768272493122,0.887727,3103.5,3102.7,2.1940646]
[1768272493322,0.887727,3103.4,3102.7,2.1940646]
[1768272493624,0.00320385,3103.6,3102.7,2.1940646]
[1768272493821,0.88787061,3103.5,3102.7,2.1940646]
[1768272494026,0.00320385,3103.6,3102.7,2.1940646]
[1768272494227,0.88782845,3103.5,3102.7,2.1940646]
[1768272494434,0.88782845,3103.4,3102.7,2.1940646]
[1768272494637,0.00320385,3103.6,3102.7,2.1940646]
[1768272494826,0.88810801,3103.5,3102.7,2.1940646]
[1768272495028,0.88810801,3103.4,3102.7,2.1940646]
[1768272495229,0.00320385,3103.6,3102.7,2.1940646]
[1768272495542,0.88811615,3103.5,3102.7,2.1940646]
[1768272495727,0.88811615,3103.4,3102.7,2.1940646]
[1768272495931,0.00320385,3103.6,3102.7,2.1940646]
[1768272496131,0.88811548,3103.5,3102.7,2.1940646]
[1768272496438,0.88811548,3103.4,3102.7,2.1940646]
[1768272496640,0.00320385,3103.6,3102.7,2.1940646]
[1768272496840,0.88811851,3103.5,3102.7,2.1940646]
[1768272497027,0.88811851,3103.4,3102.7,2.1940646]
[1768272497228,0.00320385,3103.6,3102.7,2.1940646]
[1768272497438,0.8882367,3103.5,3102.4,1.1102065]
[1768272497737,1.1102065,3102.9,3101.8,2.88390821]
[1768272497938,1.1102065,3102.9,3101.7,0.0048362]
[1768272498832,0.88772397,3102.8,3101.7,0.0048362]
[1768272499033,1.1102065,3102.9,3101.7,0.0048362]
[1768272499343,1.06759891,3103.0,3101.7,1.11497325]
[1768272499344,1.11013705,3102.7,3101.7,1.11497325]
[1768272502543,1.11013705,3102.5,3101.7,0.0048362]
[1768272509755,1.11013705,3102.7,3101.7,0.0048362]
[1768272509955,1.11013705,3102.7,3101.8,1.11013705]
[1768272510154,1.11013705,3102.8,3101.8,1.11013705]
[1768272511360,2.33903596,3103.4,3102.4,1.11013705]
[1768272511554,3.13990509,3103.3,3102.4,1.11013705]
[1768272511854,2.33903596,3103.4,3101.7,2.17788953]
[1768272511855,0.8859097,3103.2,3102.2,1.11013705]
[1768272512055,0.8859097,3103.1,3102.2,1.11013705]
[1768272512257,4.08773596,3103.4,3102.4,1.11013705]
[1768272512457,0.88597262,3103.3,3102.4,1.11013705]
[1768272512657,0.88597262,3103.2,3102.4,1.11013705]
[1768272512857,0.88597262,3103.1,3101.8,1.06291628]
[1768272513057,0.88597262,3103.1,3102.0,1.11013705]
[1768272513858,1.11013705,3103.0,3102.0,1.11013705]
[1768272514062,1.11013705,3102.8,3101.8,2.17305333]
[1768272514248,1.11013705,3102.8,3101.8,1.11013705]
[1768272514557,1.11013705,3102.8,3101.7,0.0048362]
[1768272515361,1.11013705,3102.8,3101.8,1.11013705]
[1768272517152,1.11013705,3102.6,3101.7,0.0048362]
[1768272518767,1.11013705,3102.8,3101.8,1.11013705]
[1768272519065,0.98754854,3103.0,3101.8,1.11013705]
[1768272519267,0.88614498,3102.9,3102.0,1.11013705]
[1768272519466,0.98754854,3103.0,3102.0,1.11013705]
[1768272519666,0.98754854,3103.0,3101.7,2.15494147]
[1768272519667,0.88623755,3102.9,3102.2,1.11013705]
[1768272519870,0.98754854,3103.0,3102.2,1.11013705]
[1768272520064,0.8862373,3102.9,3102.2,1.11013705]
[1768272520260,1.11013705,3103.2,3102.2,1.11013705]
[1768272520467,0.88631791,3103.1,3102.1,1.11013705]
[1768272520767,0.88631791,3103.0,3102.3,1.11013705]
[1768272520969,1.908,3103.3,3102.3,1.11013705]
[1768272521163,0.88636032,3103.2,3102.3,1.11013705]
[1768272521365,1.1133409,3103.6,3102.5,1.11013705]
[1768272521563,0.88659401,3103.5,3102.5,1.11013705]
[1768272521870,0.88659401,3103.4,3102.5,1.11013705]
[1768272522069,0.88659401,3103.3,3102.5,1.11013705]
[1768272522267,0.88659401,3103.2,3102.5,1.11013705]
[1768272522474,1.11013705,3103.4,3102.5,1.11013705]
[1768272522674,0.8867806,3103.3,3102.5,1.11013705]
[1768272522969,0.8867806,3103.2,3102.5,1.11013705]
[1768272523171,1.11013705,3103.4,3102.5,1.11013705]
[1768272523371,0.88680742,3103.3,3102.5,1.11013705]
[1768272523572,0.88680742,3103.2,3102.5,1.11013705]
[1768272523772,1.11013705,3103.4,3102.5,1.11013705]
[1768272523970,0.88698425,3103.3,3102.5,1.11013705]
[1768272524166,0.88698425,3103.2,3102.3,1.11013705]
[1768272524367,1.11013705,3103.4,3102.3,1.11013705]
[1768272524567,0.88716426,3103.3,3102.3,1.11013705]
[1768272524865,0.88716426,3103.2,3102.3,1.11013705]
[1768272525068,1.11013705,3103.4,3102.3,1.11013705]
[1768272525267,0.88717469,3103.3,3102.3,1.11013705]
[1768272525467,0.88717469,3103.2,3102.3,1.11013705]
[1768272525668,0.88717469,3103.1,3102.3,1.11013705]
[1768272525867,1.11013705,3103.4,3102.3,1.11013705]
[1768272526068,0.88738014,3103.3,3102.3,1.11013705]
[1768272526266,0.88738014,3103.2,3102.3,1.11013705]
[1768272526467,0.88738014,3103.1,3102.3,1.11013705]
[1768272526667,1.11013705,3103.4,3102.3,1.11013705]
[1768272526872,0.88761485,3103.3,3102.3,1.11013705]
[1768272527072,0.88761485,3103.2,3102.3,1.11013705]
[1768272527272,0.88761485,3103.1,3102.3,1.11013705]
[1768272527463,1.11013705,3103.4,3102.3,1.11013705]
[1768272527668,0.88752035,3103.3,3102.3,1.11013705]
[1768272527874,0.88752035,3103.2,3102.3,1.11013705]
[1768272528074,0.88752035,3103.1,3102.3,1.11013705]
[1768272528276,1.11013705,3103.4,3102.3,1.11013705]
[1768272528475,0.88755986,3103.3,3102.3,1.11013705]
[1768272528676,0.88755986,3103.2,3102.3,1.11013705]
[1768272528877,0.88755986,3103.1,3102.3,1.11013705]
[1768272529177,1.11013705,3103.4,3102.3,1.11013705]
[1768272529378,0.88751186,3103.3,3102.3,1.11013705]
[1768272529576,0.88751186,3103.2,3102.3,1.11013705]
[1768272529778,0.88751186,3103.1,3102.3,1.11013705]
[1768272530080,1.11013705,3103.4,3102.3,1.11013705]
[1768272530379,0.88747577,3103.3,3102.3,1.11013705]
[1768272530577,0.88747577,3103.2,3102.3,1.11013705]
[1768272530774,0.88747577,3103.1,3102.3,1.11013705]
[1768272530973,1.11013705,3103.4,3102.3,1.11013705]
[1768272531177,0.88741305,3103.3,3102.3,1.11013705]
[1768272531376,0.88741305,3103.2,3102.3,1.11013705]
[1768272531570,0.88741305,3103.1,3102.3,1.11013705]
[1768272531766,1.11013705,3103.4,3102.3,1.11013705]
[1768272531971,0.88735426,3103.3,3102.3,1.11013705]
[1768272532266,0.88735426,3103.2,3102.3,1.11013705]
[1768272532471,0.88735426,3103.1,3102.3,1.11013705]
[1768272532672,1.11013705,3103.4,3102.3,1.11013705]
[1768272532872,0.88731256,3103.3,3102.3,1.11013705]
[1768272533076,0.88731256,3103.2,3102.3,1.11013705]
[1768272533272,0.88731256,3103.1,3102.3,1.11013705]
[1768272533477,1.11013705,3103.4,3102.3,1.11013705]
[1768272533680,0.88727266,3103.3,3102.3,1.11013705]
[1768272533880,0.88727266,3103.2,3102.3,1.11013705]
[1768272534080,0.88727266,3103.1,3102.3,1.11013705]
[1768272534277,1.11013705,3103.4,3102.3,1.11013705]
[1768272534479,0.88726384,3103.3,3102.3,1.11013705]
[1768272534777,0.88726384,3103.2,3102.3,1.11013705]
[1768272534977,0.88726384,3103.1,3102.3,1.11013705]
[1768272535173,1.11013705,3103.4,3102.3,1.11013705]
[1768272535373,0.88725524,3103.3,3102.3,1.11013705]
[1768272535577,0.88725524,3103.2,3102.3,1.11013705]
[1768272535780,0.88725524,3103.1,3102.3,1.11013705]
[1768272535984,1.11013705,3103.4,3102.3,1.11013705]
[1768272536175,0.8872628,3103.3,3102.3,1.11013705]
[1768272536375,0.8872628,3103.2,3102.3,1.11013705]
[1768272536576,0.8872628,3103.1,3102.3,1.11013705]
[1768272536772,1.11013705,3103.4,3102.3,1.11013705]
[1768272536973,0.88648981,3103.3,3102.3,1.11013705]
[1768272537177,0.88648981,3103.2,3102.3,1.11013705]
[1768272537379,1.11013705,3103.4,3102.3,1.11013705]
[1768272537578,0.88501972,3103.3,3102.3,1.11013705]
[1768272537777,1.11013705,3103.4,3102.3,1.11013705]
[1768272537778,0.88501972,3103.2,3102.3,1.11013705]
[1768272538079,1.11013705,3103.4,3102.3,1.11013705]
[1768272538278,0.88494426,3103.3,3102.5,1.11013705]
[1768272538583,1.1133409,3103.6,3102.7,1.11013705]
[1768272538785,0.88498274,3103.5,3102.7,1.11013705]
[1768272539084,0.88498274,3103.4,3102.7,1.11013705]
[1768272539386,0.88498274,3103.3,3102.7,1.11013705]
[1768272539587,1.1133409,3103.6,3102.7,1.11013705]
[1768272539782,0.8848783,3103.5,3102.7,1.11013705]
[1768272539983,0.8848783,3103.4,3102.7,1.11013705]
[1768272540286,0.8848783,3103.3,3102.7,1.11013705]
[1768272540483,0.00320385,3103.6,3102.7,1.03996822]
[1768272540789,0.00320385,3103.6,3103.3,1.11013705]
[1768272541087,3.01413705,3104.1,3103.1,1.11013705]
[1768272541290,0.8850821,3104.0,3103.1,1.11013705]
[1768272541480,0.8850821,3103.9,3103.1,1.11013705]
[1768272541675,0.8850821,3103.8,3103.1,1.11013705]
[1768272541988,0.00401198,3103.8,3103.2,0.0048362]
[1768272543478,0.00401198,3103.8,3103.2,1.11497325]
[1768272544788,0.00401198,3103.8,3103.4,1.11013705]
[1768272544980,1.11013705,3104.5,3103.6,1.11013705]
[1768272545186,0.88399366,3104.4,3103.6,1.11013705]
[1768272545488,0.88399366,3104.3,3103.6,1.11013705]
[1768272545689,1.904,3104.5,3103.6,1.11013705]
[1768272545890,0.00333222,3104.5,3103.8,1.11013705]
[1768272546090,0.00333222,3104.5,3103.6,1.11013705]
[1768272547486,0.00333222,3104.5,3104.0,1.11013705]
[1768272547683,1.11013705,3104.9,3104.0,1.11013705]
[1768272547884,0.88268748,3104.8,3104.0,1.11013705]
[1768272548084,1.11013705,3104.9,3103.8,2.13380505]
[1768272548387,1.11013705,3104.9,3104.0,1.11013705]
[1768272548592,1.11422778,3104.9,3104.0,1.11013705]
[1768272548993,0.00409073,3104.9,3104.0,1.11013705]
[1768272549790,0.00409073,3104.9,3104.2,1.11013705]
[1768272550192,0.00409073,3104.9,3104.1,1.11013705]
[1768272550390,1.11422778,3104.9,3104.0,1.023668]
[1768272552795,1.11013705,3104.7,3103.3,1.023668]
[1768272553087,1.11013705,3104.7,3103.7,1.11013705]
[1768272553887,1.11013705,3104.5,3103.5,1.11013705]
[1768272554294,1.11013705,3104.8,3103.7,2.10477805]
[1768272556696,1.11013705,3104.8,3103.9,1.11013705]
[1768272556992,0.00409073,3104.9,3103.9,1.11013705]
[1768272558296,1.11013705,3104.8,3103.9,1.11013705]
[1768272559093,1.11013705,3104.4,3103.2,0.0048362]
[1768272559403,1.11013705,3103.8,3103.2,0.0048362]
[1768272559587,1.11013705,3103.7,3103.2,0.0048362]
[1768272561191,1.11013705,3103.7,3103.1,0.00317754]
[1768272561402,0.0048362,3103.8,3103.1,0.00317754]
[1768272601440,0.0048362,3103.8,3103.2,2.13738102]
[1768272601647,1.889,3104.8,3103.3,1.02797002]
[1768272601848,1.22866107,3104.7,3103.4,1.109411]
[1768272602149,1.22866107,3104.6,3103.4,1.109411]
[1768272602339,1.22866107,3104.5,3103.4,1.109411]
[1768272602539,0.88645104,3104.4,3103.4,1.109411]
[1768272602747,0.88645104,3104.3,3103.4,1.109411]
[1768272602946,0.88645104,3104.2,3103.4,1.109411]
[1768272603146,2.93533446,3104.8,3103.4,1.109411]
[1768272603343,1.22735036,3104.7,3103.4,1.109411]
[1768272603549,2.93533446,3104.8,3103.4,1.109411]
[1768272603550,1.22735036,3104.6,3103.4,1.109411]
[1768272603854,0.88550539,3104.5,3103.4,1.109411]
[1768272604042,0.88550539,3104.4,3103.4,1.109411]
[1768272604352,0.88550539,3104.3,3103.4,1.109411]
[1768272604643,2.93533446,3104.8,3103.4,1.109411]
[1768272604947,1.22701168,3104.7,3103.4,1.109411]
[1768272605149,1.22701168,3104.6,3103.4,1.109411]
[1768272605348,0.88526103,3104.5,3103.4,1.109411]
[1768272605549,0.88526103,3104.4,3103.4,1.109411]
[1768272605850,0.88526103,3104.3,3103.4,1.109411]
[1768272606049,2.93533446,3104.8,3103.4,1.109411]
[1768272606251,1.22603851,3104.7,3103.4,1.109411]
[1768272606456,0.8845324,3104.6,3103.4,1.109411]
[1768272606653,0.8845324,3104.5,3103.4,1.109411]
[1768272606852,0.8845324,3104.4,3103.4,1.109411]
[1768272607047,0.8845324,3104.3,3103.4,1.109411]
[1768272607245,2.93533446,3104.8,3103.4,1.109411]
[1768272607448,1.2258301,3104.7,3103.4,1.109411]
[1768272607653,0.88440854,3104.6,3103.4,1.109411]
[1768272607957,0.88440854,3104.5,3103.4,1.109411]
[1768272608156,0.88440854,3104.4,3103.4,1.109411]
[1768272608350,0.88440854,3104.3,3103.4,1.109411]
[1768272608555,0.00409073,3104.9,3103.7,1.109411]
[1768272608747,0.88445826,3104.8,3103.7,2.14749914]
[1768272608954,0.88445826,3104.7,3103.7,2.14749914]
[1768272609155,0.88445826,3104.6,3103.7,2.14749914]
[1768272609354,0.00409073,3104.9,3103.7,2.14749914]
[1768272609551,0.88422268,3104.8,3103.7,2.14749914]
[1768272609753,0.88422268,3104.7,3103.7,2.14749914]
[1768272609948,0.88422268,3104.6,3103.7,2.14749914]
[1768272610145,0.00409073,3104.9,3103.7,2.14749914]
[1768272610350,0.88403002,3104.8,3103.7,2.14749914]
[1768272610550,0.00409073,3104.9,3103.7,2.14749914]
[1768272610756,0.88408528,3104.8,3103.7,2.14749914]
[1768272610956,0.00409073,3104.9,3103.7,2.14749914]
[1768272611158,0.88411999,3104.8,3103.7,2.14749914]
[1768272611359,0.00409073,3104.9,3103.7,2.14749914]
[1768272611658,0.88395103,3104.8,3103.7,2.14749914]
[1768272611855,0.00409073,3104.9,3103.7,2.14749914]
[1768272612059,0.88394708,3104.8,3103.7,2.14749914]
[1768272612266,0.00409073,3104.9,3103.7,2.14749914]
[1768272612467,0.88370952,3104.8,3103.7,2.14749914]
[1768272612663,0.00409073,3104.9,3103.8,1.03808814]
[1768272612959,0.88370955,3104.8,3103.8,1.03808814]
[1768272613150,0.00409073,3104.9,3103.8,1.03808814]
[1768272619667,0.00409073,3104.9,3104.1,1.0567074]
[1768272619968,0.00409073,3104.9,3104.3,1.109411]
[1768272620353,0.00409073,3104.9,3104.1,1.0567074]
[1768272623467,0.00409073,3104.9,3104.3,1.10832366]
[1768272624161,0.00409073,3104.9,3104.3,2.16503106]
[1768272629469,0.00409073,3104.9,3104.5,2.16503106]
[1768272629672,1.10832366,3105.5,3104.5,2.16503106]
[1768272630474,1.10832366,3105.5,3104.7,0.0048362]
[1768272630675,1.11126427,3105.5,3104.7,0.0048362]
[1768272633175,0.88310479,3105.4,3104.7,0.0048362]
[1768272633374,1.11126427,3105.5,3104.7,0.0048362]
[1768272633567,0.88310482,3105.4,3104.7,0.0048362]
[1768272633763,1.11126427,3105.5,3104.7,0.0048362]
[1768272633966,0.88310514,3105.4,3104.7,0.0048362]
[1768272634167,1.11126427,3105.5,3104.7,0.0048362]
[1768272634467,0.88320491,3105.4,3104.7,0.0048362]
[1768272634667,1.11126427,3105.5,3104.7,0.0048362]
[1768272634868,0.88320733,3105.4,3104.7,0.0048362]
[1768272635075,1.11126427,3105.5,3104.7,0.0048362]
[1768272635275,0.88320805,3105.4,3104.7,0.0048362]
[1768272635476,1.11126427,3105.5,3104.7,0.0048362]
[1768272635675,0.88344422,3105.4,3104.7,0.0048362]
[1768272635877,1.11126427,3105.5,3104.7,0.0048362]
[1768272636074,1.10832366,3105.3,3104.7,0.0048362]
[1768272642075,1.11126427,3105.5,3104.7,0.0048362]
[1768272642277,0.88446103,3105.4,3104.7,0.0048362]
[1768272642476,1.11126427,3105.5,3104.7,1.11315986]
[1768272642477,0.88446103,3105.3,3104.7,1.11315986]
[1768272642679,0.00294061,3105.5,3104.7,1.11315986]
[1768272642881,0.88454151,3105.4,3104.7,1.11315986]
[1768272643175,0.00294061,3105.5,3104.7,1.11315986]
[1768272643388,0.88464068,3105.4,3104.7,1.11315986]
[1768272643589,0.00294061,3105.5,3104.7,1.11315986]
[1768272643793,0.88463978,3105.4,3104.7,0.0048362]
[1768272643987,1.11126427,3105.5,3104.7,0.0048362]
[1768272644289,0.88464205,3105.4,3104.7,0.0048362]
[1768272644493,1.11126427,3105.5,3104.7,0.0048362]
[1768272644788,0.88471189,3105.4,3104.7,0.0048362]
[1768272644988,1.11126427,3105.5,3104.7,0.0048362]
[1768272645292,0.88471187,3105.4,3104.7,0.0048362]
[1768272645483,1.11126427,3105.5,3104.7,0.0048362]
[1768272645686,0.88482128,3105.4,3104.7,0.0048362]
[1768272645994,1.11126427,3105.5,3104.7,0.0048362]
[1768272646186,0.88496673,3105.4,3104.7,0.0048362]
[1768272646491,1.11126427,3105.5,3104.7,0.0048362]
[1768272646692,0.88496005,3105.4,3104.7,0.0048362]
[1768272646893,1.11126427,3105.5,3104.7,0.0048362]
[1768272647089,1.10832366,3105.3,3104.7,0.0048362]
[1768272654299,1.11126427,3105.5,3104.7,0.0048362]
[1768272654606,0.88571749,3105.4,3104.7,1.11315986]
[1768272654803,0.88571749,3105.3,3104.7,1.11315986]
[1768272655000,1.11126427,3105.5,3104.7,1.11315986]
[1768272655304,0.88583122,3105.4,3104.7,1.11315986]
[1768272655499,0.88583122,3105.3,3104.7,1.11315986]
[1768272655801,1.11126427,3105.5,3104.7,1.11315986]
[1768272655998,0.88582079,3105.4,3104.7,1.11315986]
[1768272656200,0.88582079,3105.3,3104.7,1.11315986]
[1768272656401,1.11126427,3105.5,3104.7,1.11315986]
[1768272656602,0.88591762,3105.4,3104.7,1.11315986]
[1768272656903,0.88591762,3105.3,3104.7,1.11315986]
[1768272657104,1.11126427,3105.5,3104.7,1.11315986]
[1768272657299,0.88595886,3105.4,3104.7,1.11315986]
[1768272657494,0.88596136,3105.3,3104.7,1.11315986]
[1768272657695,1.11126427,3105.5,3104.7,1.11315986]
[1768272657999,0.88596149,3105.4,3104.7,1.11315986]
[1768272658200,0.88596149,3105.3,3104.7,1.11315986]
[1768272658401,1.11126427,3105.5,3104.7,1.11315986]
[1768272658593,0.88596123,3105.4,3104.7,1.11315986]
[1768272658793,0.88596123,3105.3,3104.7,1.11315986]
[1768272658999,1.11126427,3105.5,3104.7,1.11315986]
[1768272659301,0.8859596,3105.4,3104.7,1.11315986]
[1768272659488,0.00294061,3105.5,3104.7,1.11315986]
[1768272659688,0.88596265,3105.4,3104.7,1.11315986]
[1768272659898,0.00294061,3105.5,3104.7,1.11315986]
[1768272660098,0.88596483,3105.4,3104.7,1.11315986]
[1768272660299,0.00294061,3105.5,3104.9,1.10832366]
[1768272661299,0.00294061,3105.5,3104.8,1.10832366]
[1768272662102,0.00294061,3105.5,3104.7,0.0048362]
[1768272662398,1.10832366,3105.2,3104.7,0.0048362]
[1768272662603,1.10832366,3105.0,3104.0,1.00111346]
[1768272663195,1.10832366,3105.0,3104.1,1.10832366]
[1768272663893,1.10832366,3105.0,3103.9,1.10832366]
[1768272664805,1.10832366,3105.0,3103.7,2.88390821]
[1768272664806,1.10832366,3105.0,3104.1,1.10832366]
[1768272665809,1.10832366,3105.2,3104.1,1.10832366]
[1768272666110,1.10832366,3105.2,3104.3,1.10832366]
[1768272671713,0.0048362,3105.1,3104.3,1.10832366]
[1768272672215,0.0048362,3105.1,3104.1,1.10832366]
[1768272673115,1.10832366,3105.0,3104.1,1.10832366]
[1768272683430,0.0048362,3105.1,3103.9,0.9907161]
[1768272691343,0.88794648,3105.0,3103.9,0.9907161]
[1768272691642,0.0048362,3105.1,3103.9,0.9907161]
[1768272691843,0.88794887,3105.0,3103.9,0.9907161]
[1768272692137,0.0048362,3105.1,3103.9,0.9907161]
[1768272692445,0.88814118,3105.0,3103.9,0.9907161]
[1768272692644,0.0048362,3105.1,3103.9,0.9907161]
[1768272692950,0.88814136,3105.0,3103.9,0.9907161]
[1768272693155,0.0048362,3105.1,3103.9,0.9907161]
[1768272693353,0.88814308,3105.0,3103.9,0.9907161]
[1768272693547,0.0048362,3105.1,3103.9,0.9907161]
[1768272693845,0.88813722,3105.0,3103.9,0.9907161]
[1768272694040,0.0048362,3105.1,3103.9,0.9907161]
[1768272694241,0.88813718,3105.0,3103.9,0.9907161]
[1768272694450,0.0048362,3105.1,3103.9,0.9907161]
[1768272694647,0.88814122,3105.0,3103.9,0.9907161]
[1768272694849,0.0048362,3105.1,3103.9,0.9907161]
[1768272695048,0.88814094,3105.0,3103.9,0.9907161]
[1768272695245,0.0048362,3105.1,3103.9,0.9907161]
[1768272695548,0.88815156,3105.0,3103.9,0.9907161]
[1768272695747,0.0048362,3105.1,3103.9,0.9907161]
[1768272695942,0.88815109,3105.0,3103.9,0.9907161]
[1768272696148,0.0048362,3105.1,3103.9,0.9907161]
[1768272696350,0.88816811,3105.0,3103.9,0.9907161]
[1768272696552,0.0048362,3105.1,3103.9,0.9907161]
[1768272696748,0.8881663,3105.0,3103.9,0.9907161]
[1768272696945,0.0048362,3105.1,3103.9,0.9907161]
[1768272697148,0.88816012,3105.0,3103.6,2.88390821]
[1768272697353,0.88816012,3104.9,3103.5,1.01468933]
[1768272697547,2.10110138,3105.1,3103.5,1.01468933]
[1768272697754,0.8880398,3105.0,3103.5,1.01468933]
[1768272697951,0.8880398,3104.9,3103.5,1.01468933]
[1768272698151,2.10110138,3105.1,3103.5,1.01468933]
[1768272698356,0.88798241,3105.0,3103.5,1.01468933]
[1768272698547,0.88798241,3104.9,3103.5,1.01468933]
[1768272698749,2.10110138,3105.1,3103.5,1.01468933]
[1768272698951,0.88798173,3105.0,3103.5,1.01468933]
[1768272699152,0.88798173,3104.9,3103.5,1.01468933]
[1768272699355,2.10110138,3105.1,3103.5,1.01468933]
[1768272699557,0.88794062,3105.0,3103.5,1.01468933]
[1768272699857,0.88794062,3104.9,3103.5,1.01468933]
[1768272700058,2.10110138,3105.1,3103.5,1.01468933]
[1768272700249,1.87567507,3105.0,3103.5,1.01468933]
[1768272700449,1.87567507,3104.9,3103.5,1.01468933]
[1768272700655,0.88790987,3104.8,3103.5,1.01468933]
[1768272700958,0.9877652,3104.9,3103.5,1.01468933]
[1768272701157,0.8879056,3104.8,3103.5,1.01468933]
[1768272701351,0.9877652,3104.9,3103.5,1.01468933]
[1768272701552,0.88780876,3104.8,3103.5,1.01468933]
[1768272701755,0.9877652,3104.9,3103.5,1.01468933]
[1768272701959,0.88780867,3104.8,3103.5,1.01468933]
[1768272702264,0.9877652,3104.9,3103.5,1.01468933]
[1768272702462,0.88773374,3104.8,3103.5,1.01468933]
[1768272702662,0.9877652,3104.9,3103.5,1.01468933]
[1768272702864,0.88773371,3104.8,3103.5,1.01468933]
[1768272703064,0.9877652,3104.9,3103.5,1.01468933]
[1768272703264,0.88766422,3104.8,3103.5,1.01468933]
[1768272703467,0.9877652,3104.9,3103.5,1.01468933]
[1768272703658,0.88767219,3104.8,3103.5,1.01468933]
[1768272703858,0.9877652,3104.9,3103.5,1.01468933]
[1768272704062,0.88769004,3104.8,3103.5,1.01468933]
[1768272704263,0.9877652,3104.9,3103.5,1.01468933]
[1768272704462,0.88762716,3104.8,3103.5,1.01468933]
[1768272704665,0.9877652,3104.9,3103.5,1.01468933]
[1768272704960,0.88763471,3104.8,3103.5,1.01468933]
[1768272705161,0.9877652,3104.9,3103.5,1.01468933]
[1768272705356,0.88758492,3104.8,3103.5,1.01468933]
[1768272705550,0.9877652,3104.9,3103.5,1.01468933]
[1768272705762,0.88758492,3104.8,3103.5,1.01468933]
[1768272705960,0.9877652,3104.9,3103.5,1.01468933]
[1768272706163,0.88758465,3104.8,3103.5,1.01468933]
[1768272706356,0.9877652,3104.9,3103.5,1.01468933]
[1768272706555,0.88754535,3104.8,3103.5,1.01468933]
[1768272706751,0.9877652,3104.9,3103.5,1.01468933]
[1768272706963,0.88754484,3104.8,3103.5,1.01468933]
[1768272707263,0.9877652,3104.9,3103.6,2.12318931]
[1768272707462,0.88787751,3104.8,3103.6,2.12318931]
[1768272707662,0.9877652,3104.9,3103.6,2.12318931]
[1768272707855,0.88787431,3104.8,3103.6,2.12318931]
[1768272708057,0.9877652,3104.9,3103.6,2.12318931]
[1768272708363,0.88785759,3104.8,3103.6,2.12318931]
[1768272708661,0.9877652,3104.9,3103.6,2.12318931]
[1768272708857,0.88785715,3104.8,3103.6,2.12318931]
[1768272709056,0.9877652,3104.9,3103.6,2.12318931]
[1768272709254,0.88784642,3104.8,3103.6,2.12318931]
[1768272709453,0.9877652,3104.9,3103.6,2.12318931]
[1768272709654,0.88784508,3104.8,3103.6,2.12318931]
[1768272709955,0.9877652,3104.9,3103.6,2.12318931]
[1768272710156,0.88784508,3104.8,3103.6,2.12318931]
[1768272710366,0.9877652,3104.9,3103.6,2.12318931]
[1768272710558,0.88782846,3104.8,3103.6,2.12318931]
[1768272710759,0.9877652,3104.9,3103.6,2.12318931]
[1768272710960,0.88782843,3104.8,3103.6,2.12318931]
[1768272711161,0.9877652,3104.9,3103.6,2.12318931]
[1768272711363,0.88781928,3104.8,3103.6,2.12318931]
[1768272711562,0.9877652,3104.9,3103.6,2.12318931]
[1768272711861,0.88781532,3104.8,3103.6,2.12318931]
[1768272712058,0.9877652,3104.9,3103.6,2.12318931]
[1768272712261,0.88782478,3104.8,3103.6,2.12318931]
[1768272712554,0.9877652,3104.9,3103.6,2.12318931]
[1768272712758,0.88781857,3104.8,3103.6,2.12318931]
[1768272712968,0.9877652,3104.9,3103.6,2.12318931]
[1768272713159,0.88781857,3104.8,3103.6,2.12318931]
[1768272713360,0.9877652,3104.9,3103.6,2.12318931]
[1768272713659,0.88782788,3104.8,3103.6,2.12318931]
[1768272713855,0.9877652,3104.9,3103.6,2.12318931]
[1768272714063,0.88783054,3104.8,3103.6,2.12318931]
[1768272714265,0.9877652,3104.9,3103.6,2.12318931]
[1768272714463,0.88784531,3104.8,3103.6,2.12318931]
[1768272714664,0.9877652,3104.9,3103.6,2.12318931]
[1768272714965,0.88784522,3104.8,3103.6,2.12318931]
[1768272715165,0.9877652,3104.9,3103.6,2.12318931]
[1768272715367,0.88787871,3104.8,3103.6,2.12318931]
[1768272715569,0.9877652,3104.9,3103.6,2.12318931]
[1768272715769,0.88787561,3104.8,3103.6,2.12318931]
[1768272715970,0.9877652,3104.9,3103.6,2.12318931]
[1768272716167,0.88787754,3104.8,3103.6,2.12318931]
[1768272716466,0.9877652,3104.9,3103.6,2.12318931]
[1768272716665,0.88791913,3104.8,3103.6,2.12318931]
[1768272716866,0.9877652,3104.9,3103.6,2.12318931]
[1768272717059,0.88791705,3104.8,3103.7,1.01468933]
[1768272717372,0.0048362,3105.1,3103.7,1.01468933]
[1768272717573,0.88794285,3105.0,3103.7,1.01468933]
[1768272717772,0.88794285,3104.9,3103.7,1.01468933]
[1768272718071,0.88794285,3104.8,3103.7,1.01468933]
[1768272718272,0.0048362,3105.1,3103.7,1.01468933]
[1768272718474,0.88798168,3105.0,3103.7,1.01468933]
[1768272718675,0.88798168,3104.9,3103.7,1.01468933]
[1768272718974,0.88798168,3104.8,3103.7,1.01468933]
[1768272719175,0.0048362,3105.1,3103.7,1.01468933]
[1768272719380,0.88802468,3105.0,3103.7,1.01468933]
[1768272719575,0.88802468,3104.9,3103.7,1.01468933]
[1768272719874,0.88802468,3104.8,3103.6,1.10849998]
[1768272720067,0.88802468,3104.7,3103.3,2.88390821]
[1768272720262,2.09626518,3104.9,3103.3,2.12318931]
[1768272720474,2.09626518,3104.6,3103.2,2.88390821]
[1768272720670,0.0048362,3105.1,3103.1,0.00317754]
[1768272720671,1.10849998,3104.3,3103.1,0.00317754]
[1768272720975,1.10849998,3104.0,3103.1,0.00317754]
[1768272722069,2.09626518,3104.3,3103.1,0.00317754]
[1768272722269,0.88814108,3104.2,3103.1,0.00317754]
[1768272722470,0.88814108,3104.1,3103.1,0.00317754]
[1768272722669,2.09626518,3104.3,3103.1,0.00317754]